bitfinex-derivatives/quotes_BTCF0:USTF0_20250308
["timestamp","ask_amount","ask_price","bid_price","bid_amount"]
[1741407641789,0.1125,86019.0,86015.0,0.1162913]
[1741407641988,0.1125,86019.0,86018.0,0.1162872]
[1741407642185,0.0581335,86033.0,86016.0,0.0581446]
[1741407642186,0.00010526,86028.0,86025.0,0.1162769]
[1741407642387,0.00010526,86028.0,86027.0,0.2162751]
[1741407642789,0.00010526,86028.0,86027.0,0.1162751]
[1741407642992,0.00010526,86028.0,86027.0,0.09618574]
[1741407643497,0.1125,86033.0,86027.0,0.03786418]
[1741407643689,0.1162745,86028.0,86025.0,0.07792]
[1741407643894,0.1125,86027.0,86026.0,0.1078]
[1741407644097,0.2162,86027.0,86025.0,0.03686485]
[1741407644295,0.2162,86027.0,86018.0,0.14027408]
[1741407644597,0.1162859,86019.0,86018.0,0.14027408]
[1741407644788,0.2162,86027.0,86017.0,1.19588878]
[1741407644988,0.2253872,86018.0,86017.0,1.33524286]
[1741407645191,0.2253872,86018.0,86017.0,1.19496878]
[1741407645392,0.2253872,86018.0,86017.0,0.79304278]
[1741407645894,0.2253872,86018.0,86017.0,0.73508924]
[1741407646089,0.2253872,86018.0,86017.0,0.69829524]
[1741407646795,0.5861872,86018.0,86017.0,0.69829524]
[1741407647887,0.5861872,86018.0,86008.0,0.17775421]
[1741407647888,0.4699,86018.0,86008.0,0.17775421]
[1741407648086,0.1162913,86015.0,86008.0,0.17775421]
[1741407648488,0.1162913,86015.0,86008.0,0.14027408]
[1741407648895,0.1062,86017.0,86008.0,0.08241275]
[1741407649098,0.1162994,86009.0,86008.0,0.08241275]
[1741407649294,0.1162994,86009.0,86008.0,0.03673433]
[1741407649495,0.1163008,86008.0,86005.0,0.1163046]
[1741407649694,0.1163008,86008.0,85999.0,0.5048406]
[1741407649896,0.3286008,86008.0,85999.0,0.6211527]
[1741407650199,0.3286008,86008.0,86007.0,0.00027135]
[1741407651493,0.3286008,86008.0,86007.0,0.03825498]
[1741407652088,0.1163102,86001.0,86000.0,0.10377154]
[1741407652284,0.1163102,86001.0,86000.0,0.04603748]
[1741407652488,0.1163116,86000.0,85999.0,0.36456652]
[1741407652693,0.3289116,86000.0,85999.0,0.40101693]
[1741407653094,0.26354276,86000.0,85999.0,0.00174395]
[1741407654087,0.1056,86000.0,85999.0,0.00174395]
[1741407654294,0.1056,86000.0,85999.0,0.03904117]
[1741407654492,0.1056,86000.0,85999.0,0.00174395]
[1741407654689,0.3608,86001.0,85999.0,0.00174395]
[1741407655109,0.3608,86001.0,85996.0,0.06010701]
[1741407655396,0.3608,86001.0,85997.0,0.1046]
[1741407655596,0.1672559,86000.0,85997.0,0.1046]
[1741407655801,0.2793559,86000.0,85998.0,0.1044]
[1741407656504,0.2212,86000.0,85999.0,0.1107]
[1741407656804,0.00017411,86008.0,86005.0,0.0581519]
[1741407657002,0.1104,86007.0,86006.0,0.3343035]
[1741407657802,0.2267021,86007.0,86006.0,0.218]
[1741407658098,0.3388021,86007.0,86006.0,0.16004646]
[1741407658289,0.3388021,86007.0,86006.0,0.1107]
[1741407658495,0.6981,86007.0,85990.0,0.14027408]
[1741407658702,0.6981,86007.0,85994.0,0.3608]
[1741407658900,0.116317,85996.0,85995.0,0.1116]
[1741407659498,0.2185,85997.0,85995.0,0.14881513]
[1741407659694,0.2185,85996.0,85995.0,0.26513343]
[1741407660197,0.1148,86007.0,85996.0,0.0581583]
[1741407660405,0.116317,85996.0,85995.0,0.14881513]
[1741407660597,0.1125,86003.0,85995.0,0.14881513]
[1741407660797,0.2185,86001.0,86000.0,0.1163116]
[1741407661199,0.2185,86001.0,86000.0,0.05835806]
[1741407661404,0.1125,86001.0,86000.0,0.2274116]
[1741407662092,0.2288102,86001.0,86000.0,0.1111]
[1741407662497,0.1125,86001.0,86000.0,0.2274116]
[1741407663804,0.1119,86007.0,86000.0,0.2274116]
[1741407663805,0.1119,86007.0,86004.0,0.116305]
[1741407664104,0.1119,86007.0,86005.0,0.15444646]
[1741407664307,0.2218035,86006.0,86005.0,0.15444646]
[1741407664805,0.1055,86006.0,86005.0,0.15444646]
[1741407665395,0.1055,86006.0,86005.0,0.27075126]
[1741407665600,0.1055,86006.0,86005.0,0.37075126]
[1741407667002,0.1055,86006.0,86005.0,0.15444646]
[1741407667203,0.1055,86006.0,86005.0,0.09649292]
[1741407667402,0.2218035,86006.0,86005.0,0.09649292]
[1741407669411,0.2218035,86006.0,86001.0,0.3608]
[1741407669412,0.1163089,86002.0,86001.0,0.3608]
[1741407670308,0.1163089,86002.0,85998.0,0.1163133]
[1741407670309,0.1163125,86000.0,85998.0,0.1163133]
[1741407670508,0.1163125,86000.0,85999.0,0.1092]
[1741407670904,0.1065,86003.0,85999.0,0.1092]
[1741407671103,0.1163102,86002.0,86001.0,0.1163099]
[1741407671303,0.1163127,86000.0,85998.0,0.1163133]
[1741407671498,0.1065,86003.0,86002.0,0.1163089]
[1741407671910,0.1065,86003.0,85996.0,0.0581585]
[1741407672106,0.0581549,86002.0,85996.0,0.0581585]
[1741407672314,0.0581549,86002.0,86000.0,0.1163103]
[1741407672610,0.2228075,86003.0,86002.0,0.1163089]
[1741407673005,0.1163102,86001.0,86000.0,0.1163103]
[1741407673310,0.1163119,86000.0,85999.0,0.05835886]
[1741407673510,0.164654,86003.0,85995.0,0.03721513]
[1741407673711,0.1163102,86001.0,86000.0,0.1163112]
[1741407674300,0.1163078,86003.0,85996.0,0.1053]
[1741407674507,0.1163078,86003.0,85998.0,0.1581569]
[1741407674703,0.1163078,86003.0,86001.0,0.1163092]
[1741407674909,0.1163078,86003.0,86002.0,0.1135]
[1741407676109,0.36157412,86008.0,86002.0,0.1135]
[1741407676315,0.1163075,86003.0,85997.0,0.1163151]
[1741407676506,0.0581537,86003.0,85997.0,0.1163151]
[1741407676704,0.1163107,86001.0,85998.0,0.1163143]
[1741407677012,0.05094271,86001.0,85998.0,0.1163143]
[1741407677912,0.0581517,86006.0,85998.0,0.1163143]
[1741407678119,0.36157412,86008.0,85998.0,0.2163143]
[1741407678120,0.116308,86003.0,85998.0,0.2163143]
[1741407678318,0.0581526,86005.0,85998.0,0.1]
[1741407678620,0.1163107,86001.0,85998.0,0.2163141]
[1741407678824,0.1163107,86001.0,85998.0,0.1163141]
[1741407679119,0.1163129,86000.0,85996.0,0.1163166]
[1741407679314,0.1163129,86000.0,85996.0,0.05836306]
[1741407679714,0.0581546,86002.0,85996.0,0.05836306]
[1741407680623,0.1163066,86004.0,85997.0,0.0581578]
[1741407680921,0.1163066,86004.0,85999.0,0.1163118]
[1741407681224,0.1163078,86003.0,85999.0,0.1163118]
[1741407681407,0.1163078,86003.0,86000.0,0.1163104]
[1741407681823,0.1163069,86004.0,86001.0,0.1163096]
[1741407682214,0.0581521,86006.0,86001.0,0.1163096]
[1741407682416,0.36157412,86008.0,86007.0,0.1163021]
[1741407682611,0.36097411,86008.0,86007.0,0.1163021]
[1741407682817,0.47727491,86008.0,86005.0,0.1163043]
[1741407683021,0.36097411,86008.0,86006.0,0.1082]
[1741407683321,0.36097411,86008.0,85995.0,0.10499051]
[1741407683322,0.0581517,86006.0,85998.0,0.2163134]
[1741407683524,0.1163069,86004.0,85999.0,0.193]
[1741407683709,0.1163069,86004.0,86000.0,0.1163111]
[1741407684111,0.1163069,86004.0,86000.0,0.1163109]
[1741407685015,0.116308,86003.0,86000.0,0.1163109]
[1741407685318,0.1163049,86005.0,86001.0,0.05835616]
[1741407685629,0.36097411,86008.0,86005.0,0.1163048]
[1741407685815,0.1121,86007.0,86005.0,0.116304]
[1741407686116,0.1121,86007.0,86005.0,0.2326081]
[1741407686318,0.1121,86007.0,86006.0,0.2254035]
[1741407686524,0.1121,86007.0,86006.0,0.4359035]
[1741407686718,0.04673439,86007.0,86006.0,0.4359035]
[1741407686918,0.3608,86015.0,86014.0,0.1162926]
[1741407687620,0.3608,86015.0,86014.0,0.4445926]
[1741407687927,0.3608,86025.0,86024.0,0.1162791]
[1741407688116,0.3608,86025.0,86015.0,0.14027408]
[1741407688618,0.1162831,86022.0,86016.0,0.1162896]
[1741407688819,0.1049,86021.0,86017.0,0.1091]
[1741407689018,0.116286,86019.0,86017.0,0.1091]
[1741407689218,0.0581411,86022.0,86018.0,0.1096]
[1741407689424,0.1162834,86021.0,86019.0,0.1136]
[1741407689628,0.1162834,86021.0,86020.0,0.1096]
[1741407690623,0.1162834,86021.0,86020.0,0.15711192]
[1741407690820,0.1057,86023.0,86020.0,0.15711192]
[1741407691022,0.1162671,86033.0,86028.0,0.1162737]
[1741407691229,0.1162683,86032.0,86029.0,0.2173]
[1741407691530,0.1057,86033.0,86029.0,0.15934646]
[1741407691731,0.1057,86031.0,86029.0,0.15934646]
[1741407692231,0.2219697,86031.0,86029.0,0.15934646]
[1741407692423,0.1057,86031.0,86029.0,0.15934646]
[1741407692729,0.116271,86030.0,86029.0,0.15934646]
[1741407693228,0.4665,86031.0,86023.0,0.14027408]
[1741407693534,0.1162791,86024.0,86023.0,0.14027408]
[1741407693827,0.0581386,86026.0,86020.0,0.04751192]
[1741407694032,0.1083,86023.0,86021.0,0.1127]
[1741407694334,0.1162818,86022.0,86021.0,0.1127]
[1741407694531,0.1162818,86022.0,86021.0,0.05474646]
[1741407694827,0.1083,86023.0,86020.0,0.04751192]
[1741407695028,0.1162872,86018.0,86017.0,0.1144]
[1741407695718,0.1162872,86018.0,86017.0,0.15995987]
[1741407695918,0.1083,86021.0,86017.0,0.15995987]
[1741407696122,0.1094,86019.0,86018.0,0.1162872]
[1741407696322,0.1094,86019.0,86018.0,0.2250872]
[1741407696830,0.1162785,86025.0,86023.0,0.1162801]
[1741407697034,0.1094,86024.0,86023.0,0.1162801]
[1741407697234,0.04404838,86024.0,86023.0,0.1162801]
[1741407697535,0.04404838,86024.0,86023.0,0.15832656]
[1741407699029,0.1162717,86030.0,86025.0,0.116277]
[1741407699234,0.00174389,86040.0,86026.0,0.6879]
[1741407699433,0.00174389,86040.0,86035.0,0.3608]
[1741407699633,0.00174389,86040.0,86036.0,0.2288624]
[1741407699836,0.00174389,86040.0,86037.0,0.2162607]
[1741407700033,0.00174389,86040.0,86038.0,0.1126]
[1741407700636,0.00174389,86040.0,86038.0,0.05464646]
[1741407700836,0.00174389,86040.0,86039.0,0.1162589]
[1741407701141,0.00174389,86040.0,86038.0,0.05464646]
[1741407701330,0.11800169,86040.0,86038.0,0.05464646]
[1741407701531,0.1162589,86039.0,86038.0,0.05464646]
[1741407701831,0.1162589,86039.0,86037.0,0.1145]
[1741407701832,0.1162629,86036.0,86035.0,0.3608]
[1741407702730,0.1162629,86036.0,86035.0,0.3696549]
[1741407703540,0.107,86037.0,86036.0,0.1162629]
[1741407703834,0.1162612,86038.0,86036.0,0.1162629]
[1741407704039,0.1162629,86037.0,86035.0,0.1046]
[1741407704239,0.0591296,86039.0,86035.0,0.1046]
[1741407704541,0.1162623,86037.0,86035.0,0.1046]
[1741407704937,0.00174389,86040.0,86036.0,0.1162621]
[1741407705143,0.1162606,86038.0,86036.0,0.1162621]
[1741407705344,0.00174389,86040.0,86035.0,0.1046]
[1741407705540,0.00174389,86040.0,86037.0,0.1162614]
[1741407705737,0.1162589,86039.0,86038.0,0.1053]
[1741407705938,0.00174389,86040.0,86038.0,0.11626]
[1741407706134,0.00174389,86040.0,86039.0,0.1162589]
[1741407706440,0.3608,86042.0,86041.0,0.1162562]
[1741407706636,0.3608,86042.0,86041.0,0.05830266]
[1741407707236,0.3608,86042.0,86041.0,0.15830266]
[1741407707441,0.1162498,86046.0,86041.0,0.05830266]
[1741407707640,0.1162498,86046.0,86042.0,0.108]
[1741407707843,0.1149,86045.0,86044.0,0.1162521]
[1741407708044,0.1162524,86044.0,86042.0,0.108]
[1741407708246,0.1149,86045.0,86042.0,0.108]
[1741407708445,0.1162418,86052.0,86047.0,0.1162476]
[1741407708646,0.1162458,86049.0,86044.0,0.0581256]
[1741407708848,0.2311477,86048.0,86042.0,0.2242548]
[1741407709043,0.1162435,86051.0,86043.0,0.1041]
[1741407709235,0.2311449,86050.0,86044.0,0.1162516]
[1741407709638,0.2311449,86050.0,86045.0,0.05829706]
[1741407709839,0.1149,86050.0,86045.0,0.05829706]
[1741407710040,0.1162458,86049.0,86046.0,0.1041]
[1741407710248,0.116248,86047.0,86046.0,0.1041]
[1741407711146,0.1123,86048.0,86046.0,0.1041]
[1741407711349,0.1123,86048.0,86047.0,0.116248]
[1741407711544,0.1123,86048.0,86046.0,0.1041]
[1741407712444,0.1123,86048.0,86047.0,0.216248]
[1741407712642,0.3608,86053.0,86052.0,0.1162413]
[1741407713846,0.3608,86053.0,86050.0,0.1162437]
[1741407714148,0.1162387,86054.0,86049.0,0.1143]
[1741407714149,0.3608,86059.0,86057.0,0.1162336]
[1741407714352,0.1121,86058.0,86057.0,0.1162336]
[1741407714550,0.1121,86058.0,86054.0,0.1162382]
[1741407714749,0.1121,86058.0,86057.0,0.1162345]
[1741407715443,0.3608,86059.0,86058.0,0.1162332]
[1741407715642,0.3608,86059.0,86058.0,0.05827966]
[1741407716038,0.2234,86060.0,86057.0,0.1162345]
[1741407716254,0.1121,86060.0,86059.0,0.1162318]
[1741407716447,0.00014778,86061.0,86060.0,0.1162305]
[1741407717346,0.00068,86079.0,86076.0,0.1162086]
[1741407717546,0.0580983,86085.0,86077.0,0.1154]
[1741407717752,0.0581006,86082.0,86077.0,0.1154]
[1741407718046,0.1162062,86078.0,86077.0,0.1154]
[1741407718251,0.1162062,86078.0,86077.0,0.11552031]
[1741407718443,0.10562889,86081.0,86077.0,0.11552031]
[1741407718648,0.1162062,86078.0,86077.0,0.11552031]
[1741407718946,0.1162062,86078.0,86077.0,0.04734844]
[1741407719142,0.4770062,86078.0,86077.0,0.00012031]
[1741407720555,0.4770062,86078.0,86061.0,0.00017434]
[1741407720556,0.1162278,86062.0,86061.0,0.00017434]
[1741407721144,0.2269278,86062.0,86061.0,0.00017434]
[1741407721842,0.1162355,86059.0,86053.0,0.42100363]
[1741407722051,0.1162355,86059.0,86058.0,0.1162323]
[1741407722250,0.1743515,86059.0,86058.0,0.1162323]
[1741407723147,0.1162332,86058.0,86057.0,0.1108]
[1741407723761,0.1162386,86054.0,86053.0,0.30476373]
[1741407724756,0.1162386,86054.0,86053.0,0.24681019]
[1741407725554,0.1162386,86054.0,86050.0,0.00017434]
[1741407725555,0.1162426,86051.0,86050.0,0.00017434]
[1741407725948,0.1963626,86051.0,86050.0,0.00017434]
[1741407727858,0.1162575,86040.0,86039.0,0.63107121]
[1741407728158,0.4770575,86040.0,86039.0,0.63107121]
[1741407728955,0.41171057,86040.0,86039.0,0.63107121]
[1741407730158,0.49199057,86040.0,86039.0,0.63107121]
[1741407730352,0.41171057,86040.0,86039.0,0.74733011]
[1741407730549,0.10056633,86041.0,86039.0,0.85683011]
[1741407730750,0.1162575,86040.0,86039.0,0.85683011]
[1741407730954,0.1162575,86040.0,86039.0,0.7989108]
[1741407731359,0.4770575,86040.0,86039.0,0.6826519]
[1741407731559,0.0581265,86044.0,86039.0,0.6826519]
[1741407731560,0.0581265,86044.0,86041.0,0.1743811]
[1741407731749,0.0581265,86044.0,86043.0,0.1162535]
[1741407732457,0.0581265,86044.0,86043.0,0.2263]
[1741407732849,0.11642134,86048.0,86046.0,0.1162494]
[1741407733056,0.11642134,86048.0,86047.0,0.342848]
[1741407733254,0.11642134,86048.0,86047.0,0.2266]
[1741407733455,0.11642134,86048.0,86047.0,0.342848]
[1741407733658,0.00017434,86048.0,86047.0,0.342848]
[1741407733857,0.00017434,86048.0,86047.0,0.28492869]
[1741407734048,0.11642104,86048.0,86047.0,0.28492869]
[1741407734250,0.00017434,86048.0,86047.0,0.28492869]
[1741407734464,0.00017434,86048.0,86047.0,0.38492869]
[1741407734760,0.00017434,86048.0,86047.0,0.16868069]
[1741407734761,0.11642104,86048.0,86047.0,0.16868069]
[1741407735557,0.0581222,86050.0,86047.0,0.16868069]
[1741407735862,0.114,86049.0,86047.0,0.16868069]
[1741407736063,0.1162467,86048.0,86047.0,0.16868069]
[1741407736557,0.2297467,86048.0,86047.0,0.16868069]
[1741407736966,0.2297467,86048.0,86047.0,0.11076138]
[1741407738768,0.1135,86048.0,86047.0,0.11076138]
[1741407739067,0.16441178,86048.0,86047.0,0.11076138]
[1741407739957,0.16441178,86048.0,86047.0,0.05284207]
[1741407740157,0.1162467,86048.0,86047.0,0.05284207]
[1741407740552,0.05091159,86048.0,86047.0,0.05284207]
[1741407740957,0.27111159,86048.0,86047.0,0.05284207]
[1741407743062,0.27111159,86048.0,86045.0,0.28501373]
[1741407743362,0.1162494,86046.0,86045.0,0.28501373]
[1741407745169,0.3364471,86048.0,86044.0,0.1162518]
[1741407745464,0.2202,86048.0,86038.0,0.14027408]
[1741407745657,0.1092,86048.0,86040.0,0.0581284]
[1741407745861,0.1162589,86039.0,86038.0,0.14027408]
[1741407746058,0.1162589,86039.0,86036.0,0.12276149]
[1741407746059,0.1162602,86038.0,86037.0,0.05468069]
[1741407746865,0.1162616,86037.0,86036.0,0.12276149]
[1741407747261,0.3608,86038.0,86036.0,0.00866149]
[1741407747469,0.1162629,86036.0,86035.0,0.76728761]
[1741407747661,0.1162629,86036.0,86035.0,0.76636761]
[1741407749162,0.1162629,86036.0,86035.0,0.7084483]
[1741407751067,0.1162629,86036.0,86035.0,0.8247126]
[1741407751263,0.2307624,86037.0,86036.0,0.1162629]
[1741407751466,0.2307624,86037.0,86036.0,0.1102]
[1741407751775,0.1654158,86037.0,86036.0,0.1102]
[1741407751971,0.1162629,86036.0,86035.0,0.7093683]
[1741407752163,0.1162629,86036.0,86035.0,0.65052899]
[1741407755277,0.1162629,86036.0,86035.0,0.59260968]
[1741407755978,0.1055,86036.0,86035.0,0.59260968]
[1741407756275,0.2217629,86036.0,86035.0,0.59260968]
[1741407758167,0.2217629,86036.0,86035.0,0.53469037]
[1741407760075,0.2217629,86036.0,86035.0,0.65095467]
[1741407760076,0.1055,86036.0,86035.0,0.65095467]
[1741407760473,0.2217629,86036.0,86035.0,0.87565467]
[1741407761178,0.2217629,86036.0,86035.0,0.70147106]
[1741407762482,0.1162495,86046.0,86045.0,0.1162507]
[1741407762677,0.1162495,86046.0,86045.0,0.1]
[1741407762678,0.2252494,86046.0,86045.0,0.1]
[1741407762980,0.1162521,86044.0,86043.0,0.1162532]
[1741407763181,0.1162596,86039.0,86036.0,0.25653678]
[1741407763375,0.1162573,86041.0,86038.0,0.1162597]
[1741407763676,0.1162573,86041.0,86040.0,0.1]
[1741407764181,0.00174338,86066.0,86040.0,0.4608]
[1741407764372,0.3608,86057.0,86055.0,0.1162372]
[1741407764579,0.3608,86057.0,86056.0,0.1162359]
[1741407765179,0.1054,86073.0,86069.0,0.1162171]
[1741407765383,0.1162109,86075.0,86069.0,0.1162171]
[1741407765573,0.1162141,86073.0,86067.0,0.1162209]
[1741407765774,0.3608,86078.0,86069.0,0.1162182]
[1741407765978,0.1162122,86074.0,86069.0,0.1162182]
[1741407766174,0.1162154,86072.0,86069.0,0.03883184]
[1741407766381,0.1162154,86072.0,86067.0,0.1162205]
[1741407766577,0.1086,86077.0,86069.0,0.1162181]
[1741407766776,0.1162112,86075.0,86069.0,0.1162181]
[1741407766978,0.1162146,86072.0,86067.0,0.15527811]
[1741407767486,0.1162146,86072.0,86067.0,0.0973588]
[1741407767685,0.03638292,86072.0,86068.0,0.1162194]
[1741407767879,0.1086,86077.0,86068.0,0.1162194]
[1741407768081,0.1162131,86073.0,86069.0,0.1162182]
[1741407768279,0.1162175,86070.0,86063.0,0.50124842]
[1741407768479,0.1162175,86070.0,86065.0,0.116223]
[1741407768675,0.1086,86076.0,86063.0,0.50124842]
[1741407768989,0.1162137,86073.0,86068.0,0.1162189]
[1741407769488,0.1162152,86072.0,86068.0,0.1162189]
[1741407769692,0.1086,86076.0,86063.0,0.54210533]
[1741407769876,0.1162251,86064.0,86063.0,0.00017434]
[1741407770273,0.3608,86089.0,86071.0,0.1162156]
[1741407770483,0.36097434,86072.0,86065.0,0.14027408]
[1741407770688,0.1162224,86066.0,86065.0,0.14027408]
[1741407770884,0.1669078,86071.0,86061.0,0.04009378]
[1741407770885,0.0581085,86070.0,86061.0,0.04009378]
[1741407771085,0.3608,86064.0,86056.0,0.14027408]
[1741407771288,0.4189126,86064.0,86056.0,0.14027408]
[1741407771584,0.1056,86063.0,86056.0,0.14027408]
[1741407771790,0.1162343,86058.0,86056.0,0.17988084]
[1741407771987,0.1056,86057.0,86056.0,0.03960676]
[1741407772182,0.1056,86057.0,86056.0,0.1162359]
[1741407772580,0.1056,86057.0,86056.0,0.2162359]
[1741407773089,0.1056,86057.0,86056.0,0.03985621]
[1741407773288,0.116227,86063.0,86058.0,0.1162324]
[1741407773486,0.1056,86062.0,86059.0,0.1162313]
[1741407774184,0.1056,86062.0,86058.0,0.05831309]
[1741407774185,0.2218288,86062.0,86058.0,0.05831309]
[1741407774390,0.1162345,86057.0,86056.0,0.04039074]
[1741407774578,0.1056,86062.0,86036.0,0.16344479]
[1741407774579,0.1056,86062.0,86051.0,0.11641694]
[1741407774781,0.0581165,86059.0,86052.0,0.1162413]
[1741407774988,0.1102,86058.0,86051.0,0.04045386]
[1741407775193,0.1162365,86056.0,86051.0,0.00017434]
[1741407775381,0.1102,86055.0,86052.0,0.1162413]
[1741407775781,0.1107,86054.0,86052.0,0.2221413]
[1741407775985,0.1107,86054.0,86053.0,0.1162399]
[1741407776177,0.04537343,86054.0,86053.0,0.1162399]
[1741407776391,0.04537343,86054.0,86053.0,0.16422059]
[1741407776587,0.04537343,86054.0,86053.0,0.27362059]
[1741407776989,0.02210343,86054.0,86053.0,0.27362059]
[1741407777694,0.02210343,86054.0,86053.0,0.37362059]
[1741407779487,0.02210343,86054.0,86053.0,0.3153]
[1741407779694,0.02210343,86054.0,86053.0,0.4315399]
[1741407780091,0.02210343,86054.0,86053.0,0.3315399]
[1741407780596,0.02210343,86054.0,86053.0,0.4315399]
[1741407781200,0.02210343,86054.0,86053.0,0.5398399]
[1741407781898,0.3608,86062.0,86061.0,0.1162291]
[1741407782593,0.2151,86066.0,86060.0,0.15878069]
[1741407782897,0.1162241,86065.0,86062.0,0.1162272]
[1741407783093,0.2151,86066.0,86063.0,0.1066]
[1741407783398,0.1085,86064.0,86063.0,0.2228264]
[1741407783598,0.1085,86064.0,86063.0,0.1066]
[1741407784394,0.1085,86064.0,86063.0,0.2228264]
[1741407784601,0.1085,86064.0,86063.0,0.3228264]
[1741407785002,0.1085,86064.0,86063.0,0.2228264]
[1741407785498,0.1085,86064.0,86063.0,0.16490709]
[1741407785800,0.1085,86064.0,86063.0,0.26920709]
[1741407785996,0.1085,86064.0,86063.0,0.73000709]
[1741407786197,0.1077,86071.0,86070.0,0.116217]
[1741407786403,0.1082,86071.0,86070.0,0.577017]
[1741407786599,0.04288641,86071.0,86070.0,0.577017]
[1741407786805,0.04288641,86071.0,86070.0,0.799417]
[1741407787802,0.0827474,86080.0,86077.0,0.1162066]
[1741407788097,0.0827474,86080.0,86078.0,0.344506]
[1741407788504,0.0827474,86080.0,86078.0,0.28658669]
[1741407788703,0.0827474,86080.0,86078.0,0.32711766]
[1741407789005,0.0827474,86080.0,86079.0,0.1162048]
[1741407789199,0.0827474,86080.0,86078.0,0.21091166]
[1741407789504,0.0827474,86080.0,86078.0,0.32711726]
[1741407789699,0.0827474,86080.0,86078.0,0.27253657]
[1741407789901,0.0827474,86080.0,86079.0,0.1162048]
[1741407790201,0.3608,86090.0,86084.0,0.0580984]
[1741407790398,0.3608,86090.0,86085.0,0.2261967]
[1741407790602,0.3608,86090.0,86085.0,0.215]
[1741407790797,0.116195,86087.0,86085.0,0.215]
[1741407790997,0.105,86086.0,86085.0,0.215]
[1741407791201,0.105,86086.0,86085.0,0.3311967]
[1741407791501,0.02517943,86086.0,86085.0,0.3311967]
[1741407791707,0.02517943,86086.0,86085.0,0.27327739]
[1741407793505,0.02517943,86086.0,86085.0,0.15708069]
[1741407793911,0.0580994,86084.0,86079.0,0.00853772]
[1741407794109,0.1075,86083.0,86071.0,0.1101]
[1741407794403,0.0581031,86078.0,86070.0,0.14044842]
[1741407794604,0.0581058,86074.0,86070.0,0.13296131]
[1741407794806,0.1162156,86071.0,86070.0,0.13296131]
[1741407795001,0.1162156,86071.0,86070.0,0.0504322]
[1741407795208,0.1162195,86069.0,86063.0,0.1162264]
[1741407795414,0.1151,86070.0,86069.0,0.1162183]
[1741407795710,0.3608,86079.0,86070.0,0.1162168]
[1741407795711,0.07119962,86079.0,86070.0,0.1162168]
[1741407795910,0.07179963,86079.0,86071.0,0.2109]
[1741407796111,0.07179963,86079.0,86078.0,0.1162062]
[1741407796413,0.07119962,86079.0,86078.0,0.1162062]
[1741407796712,0.00017434,86083.0,86080.0,0.1162023]
[1741407796906,0.1162008,86082.0,86081.0,0.212]
[1741407797604,0.1162008,86082.0,86081.0,0.15408069]
[1741407798110,0.00017434,86083.0,86079.0,0.1162047]
[1741407798308,0.00017434,86083.0,86079.0,0.2217047]
[1741407798509,0.1162009,86082.0,86080.0,0.1162033]
[1741407798922,0.1094,86081.0,86080.0,0.1162033]
[1741407799921,0.04409143,86081.0,86080.0,0.1162033]
[1741407800628,0.04409143,86081.0,86080.0,0.05828399]
[1741407800824,0.04409143,86081.0,86080.0,0.26698399]
[1741407801029,0.04409143,86081.0,86080.0,0.16698399]
[1741407801341,0.16029353,86081.0,86080.0,0.1087]
[1741407801526,0.04409143,86081.0,86080.0,0.1087]
[1741407801830,0.04409143,86081.0,86080.0,0.2249035]
[1741407802221,0.16029353,86081.0,86080.0,0.1087]
[1741407802822,0.1162035,86080.0,86079.0,0.11442685]
[1741407803122,0.1162035,86080.0,86079.0,0.22772685]
[1741407803832,0.1162035,86080.0,86079.0,0.16980754]
[1741407804627,0.1162035,86080.0,86079.0,0.05650754]
[1741407804922,0.1162035,86080.0,86079.0,0.00892685]
[1741407805122,0.0508944,86079.0,86078.0,0.3608]
[1741407805329,0.2753944,86079.0,86078.0,0.3608]
[1741407805622,0.1636944,86079.0,86078.0,0.3608]
[1741407806833,0.1636944,86079.0,86078.0,0.30288069]
[1741407807820,0.1636944,86079.0,86078.0,0.41908689]
[1741407808725,0.1636944,86079.0,86078.0,0.52568689]
[1741407809530,0.1153,86080.0,86079.0,0.1162048]
[1741407809829,0.1153,86080.0,86079.0,0.38538549]
[1741407810629,0.1153,86080.0,86079.0,0.3271]
[1741407810829,0.2315035,86080.0,86079.0,0.3271]
[1741407812334,0.2315035,86080.0,86079.0,0.1066]
[1741407813034,0.2315035,86080.0,86079.0,0.15928069]
[1741407813225,0.2315035,86080.0,86079.0,0.52008069]
[1741407813431,0.2315035,86080.0,86079.0,0.62008069]
[1741407813939,0.2315035,86080.0,86079.0,0.52008069]
[1741407814324,0.2315035,86080.0,86079.0,0.52895915]
[1741407814530,0.2315035,86080.0,86079.0,0.36967846]
[1741407815539,0.1153,86080.0,86079.0,0.36967846]
[1741407815928,0.1153,86080.0,86079.0,0.31175915]
[1741407816529,0.1153,86080.0,86079.0,0.41175915]
[1741407817035,0.1153,86080.0,86079.0,0.31175915]
[1741407817334,0.1153,86080.0,86079.0,0.41175915]
[1741407817535,0.1153,86080.0,86079.0,0.52796395]
[1741407818236,0.00017434,86083.0,86079.0,0.74986395]
[1741407818437,0.1061,86089.0,86088.0,0.1161927]
[1741407818835,0.1061,86089.0,86088.0,0.05827339]
[1741407819038,0.1061,86089.0,86088.0,0.28017339]
[1741407819436,0.1061,86089.0,86088.0,0.36361226]
[1741407820443,0.1061,86089.0,86088.0,0.30533887]
[1741407820639,0.1061,86089.0,86088.0,0.42153157]
[1741407821235,0.1061,86089.0,86088.0,0.30533887]
[1741407821937,0.1061,86089.0,86088.0,0.36361226]
[1741407822943,0.1061,86089.0,86088.0,0.41425417]
[1741407823644,0.1061,86089.0,86088.0,0.29806147]
[1741407823939,0.1061,86089.0,86088.0,0.24188078]
[1741407824245,0.1061,86089.0,86088.0,0.13408078]
[1741407824644,0.1061,86089.0,86088.0,0.23958078]
[1741407825055,0.1061,86089.0,86088.0,0.29626147]
[1741407825941,0.1061,86089.0,86088.0,0.38693461]
[1741407827145,0.02628461,86089.0,86088.0,0.38693461]
[1741407827747,0.02628461,86089.0,86088.0,0.48693461]
[1741407828040,0.1153,86092.0,86091.0,0.2161886]
[1741407830945,0.1153,86092.0,86091.0,0.15826929]
[1741407831745,0.09203,86092.0,86091.0,0.15826929]
[1741407833843,0.1161913,86089.0,86088.0,0.14800311]
[1741407834147,0.1161927,86088.0,86087.0,0.30288069]
[1741407834348,0.2225927,86088.0,86087.0,0.30288069]
[1741407834946,0.2225927,86088.0,86087.0,0.35133791]
[1741407837043,0.2225927,86088.0,86087.0,0.2934186]
[1741407838046,0.2225927,86088.0,86087.0,0.24496138]
[1741407838547,0.1064,86088.0,86084.0,0.4713]
[1741407838747,0.1161967,86085.0,86084.0,0.4713]
[1741407839649,0.1161967,86085.0,86084.0,0.3608]
[1741407840046,0.1161967,86085.0,86084.0,0.35150118]
[1741407840457,0.1161967,86085.0,86084.0,0.57020118]
[1741407840957,0.1161967,86085.0,86084.0,0.45990118]
[1741407842453,0.1161967,86085.0,86084.0,0.04862049]